Cogmind - Beta 13 @@@ ROGUE MODE // 2024.04.22 @ 20:51:40 Player: BrainTooSmol Result: Self-destructed Performance ------------- Evolutions (2) 1000 Regions Visited (3) 600 Robots Destroyed (30) 150 Value Destroyed (888) 888 Prototype IDs (10) 200 Alien Tech Used (0) 0 Bonus (0) 0 TOTAL SCORE: 2838 Bonus ------- None Cogmind --------- Core Integrity 374/550 Matter 84/300 Energy 200/200 System Corruption 0% Temperature Warning (322) Movement Core (300) Ox5 Location -8/Materials Parts ------- > --- POWER (1) -------- Subdweller Power Source > --- PROPULSION (4) --- (None) > --- UTILITY (4) ------ Small Storage Unit Improved Light Armor Plating > --- WEAPON (2) ------- Assault Cannon > --- INVENTORY (8) ---- Large Matter Pod (0) Seismic Detector ECM Suite Assault Rifle Hammer Peak State ------------ > --- POWER ------------ Subdweller Power Source > --- PROPULSION ------- Light Treads Light Treads > --- UTILITY ---------- Small Storage Unit Improved Light Armor Plating Scrap Shield > --- WEAPON ----------- Battle Cannon Assault Cannon > --- INVENTORY -------- Large Matter Pod Seismic Detector ECM Suite Assault Rifle Hammer [Rating: 17] Favorites ----------- Power Light Ion Engine Engine Light Ion Engine Propulsion Light Treads Treads Light Treads Leg Aluminum Leg Utility Scrap Shield Device Seismic Detector Storage Small Storage Unit Protection Scrap Shield Weapon Assault Rifle Ballistic Gun Assault Rifle Ballistic Cannon Battle Cannon Special Weapon Welding Torch Build | -11 -10 -10 -8 ------- Run | Yrd Mat Sub Mat Slots Evolved 4 | . . . 4 Power . | . . . . Propulsion 2 | . . . 2 Utility 2 | . . . 2 Weapon . | . . . . Parts Attached 21 | 1 4 11 5 Power 4 | . 1 3 . Engine 4 | . 1 3 . Core . | . . . . Reactor . | . . . . Propulsion 2 | . . 2 . Treads 2 | . . 2 . Leg . | . . . . Wheel . | . . . . Hover . | . . . . Flight . | . . . . Utility 7 | 1 . 2 4 Device 2 | 1 . . 1 Storage 1 | . . . 1 Processor . | . . . . Hackware . | . . . . Protection 4 | . . 2 2 Artifact . | . . . . Weapon 8 | . 3 4 1 Energy Gun . | . . . . Energy Cannon . | . . . . Ballistic Gun 3 | . 2 1 . Ballistic Cannon 4 | . . 3 1 Launcher . | . . . . Special Weapon 1 | . 1 . . Impact Weapon . | . . . . Slashing Weapon . | . . . . Piercing Weapon . | . . . . Special Melee Weapon . | . . . . Unidentified Prototypes . | . . . . Parts Lost 8 | . 1 2 5 Power 2 | . 1 1 . Propulsion 2 | . . . 2 Utility 2 | . . . 2 Weapon 2 | . . 1 1 Highest Loss Streak 5 | . 1 1 5 To Critical Strikes . | . . . . Average Slot Usage (%) 87 | . 100 84 67 Engine 13 | . 14 13 9 Treads 20 | . . 27 17 Leg 7 | . 28 . . Device 3 | . 14 . 3 Storage 3 | . 14 . 7 Protection 10 | . . 13 12 Ballistic Gun 16 | . 26 13 . Ballistic Cannon 10 | . . 13 18 Naked Turns . | . . . . Heaviest Build 41 | 13 13 29 41 Greatest Support 40 | 20 20 40 40 Greatest Overweight (x) 1 | . . 1 1 Average Overweight (x) . | . . . . Largest Inventory Capacity 8 | 8 8 8 8 Average Capacity 5 | 8 8 5 7 Most Carried 8 | 6 8 7 6 Average Carried 5 | 6 7 4 5 Final Capacity 8 | 8 8 5 8 Final Carried 7 | 6 7 5 5 Class Distribution -------------------- 100% | Mutant Dominant Class ---------------- Mutant | -10/Materials Mutant | -10/Subcaves Mutant | -8/Materials Resources | -11 -10 -10 -8 ----------- Run | Yrd Mat Sub Mat Matter Collected 1516 | 180 337 879 120 Remotely . | . . . . Salvage Created 947 | 10 323 494 120 Parts 57 | 4 14 33 6 Haulers Intercepted 1 | . 1 . . Recyclers Shooed . | . . . . Parts Field Recycled . | . . . . Retrieved Matter . | . . . . Parts Self-Destructed 19 | . . 19 . Prevented . | . . . . Kills | -11 -10 -10 -8 ------- Run | Yrd Mat Sub Mat Combat Hostiles Destroyed 25 | . 7 15 3 Guns 16 | . 7 9 . Cannons 9 | . . 6 3 Classes Destroyed 8 | 1 5 1 1 Tunneler 1 | 1 . . . Hauler 1 | . 1 . . Operator 2 | . 1 . 1 Watcher 1 | . 1 . . Swarmer 6 | . 3 3 . Grunt 8 | . 4 2 2 Duelist 1 | . . . 1 Subdweller 10 | . . 10 . Best Kill Streak 3 | 1 3 3 3 Combat Bots Only 3 | . 3 3 3 Max Kills in Single Turn 2 | 1 1 2 1 Gunslinging . | . . . . Exploded . | . . . . Melee . | . . . . Uniques/NPCs Destroyed . | . . . . Combat | -11 -10 -10 -8 -------- Run | Yrd Mat Sub Mat Hostile Shots Fired 202 | . 31 74 97 Missed 49 | . 8 19 22 Damage Taken 2619 | . 362 1217 1040 Core 372 | . 72 124 176 Absorbed by Shields 204 | . . . 204 Core Remaining (%) 60 | 100 . 21 . Volleys Fired 152 | 6 40 90 16 Largest 2 | 2 2 2 2 Hottest 83 | 40 40 78 83 Shots Fired 298 | 12 76 179 31 Gun 188 | 12 71 105 . Cannon 105 | . . 74 31 Launcher . | . . . . Special 5 | . 5 . . Kinetic 293 | 12 71 179 31 Thermal 5 | . 5 . . Explosive . | . . . . Electromagnetic . | . . . . Robot Hit Streak 21 | 2 6 21 15 Robot Miss Streak 6 | 4 6 3 2 Penetration Max . | . . . . Secondary Targets 1 | . . 1 . Max Gunslinging Chain 1 | . . 1 . Shots Hit Robots 163 | 4 39 99 21 Core Hits 58 | 2 16 31 9 Critical Kills . | . . . . Critical Parts Destroyed . | . . . . Critical Strikes . | . . . . Melee Attacks . | . . . . Impact . | . . . . Slashing . | . . . . Piercing . | . . . . Sneak Attacks . | . . . . Combat Hostiles . | . . . . Follow-up Attacks . | . . . . Damage Inflicted 2701 | 60 500 1619 522 Guns 1454 | 60 496 898 . Cannons 1243 | . . 721 522 Explosions . | . . . . Melee . | . . . . Ramming . | . . . . Kinetic 2697 | 60 496 1619 522 Thermal 4 | . 4 . . Explosive . | . . . . Electromagnetic . | . . . . Impact . | . . . . Slashing . | . . . . Piercing . | . . . . Highest Corruption 4 | . 4 4 . Average Corruption 3 | . 3 4 . Corruption Purged . | . . . . Corruption Blocked . | . . . . Effects 118 | . 31 87 . Message Errors 28 | . 7 21 . Matter Fused 33 | . 5 28 . Heat Flow Errors 13 | . 5 8 . Energy Discharges 18 | . 3 15 . Parts Rejected 1 | . . 1 . Parts Fused 3 | . . 3 . Data Loss (minor) 9 | . 5 4 . Data Loss (major) 6 | . 1 5 . Misfires 1 | . 1 . . Alerts 5 | . 4 1 . Weapon Failures 1 | . . 1 . Overload Shots . | . . . . Overflow Damage . | . . . . Projectiles . | . . . . Explosions . | . . . . Melee . | . . . . Knockbacks 26 | . . 10 16 Impact . | . . . . Kinetic 22 | . . 10 12 Secondary 4 | . . . 4 Self-Inflicted Damage . | . . . . Shots . | . . . . Rammed . | . . . . Targets Rammed . | . . . . Kicked . | . . . . Crushed . | . . . . Highest Temperature 344 | . 229 238 344 Average Temperature 119 | . 91 105 157 Received Heat Transfer 904 | . 105 216 583 Siege Activations . | . . . . Robots Corrupted . | . . . . Combat Hostiles . | . . . . Parts Fried . | . . . . Impact Corruptions . | . . . . Robots Melted . | . . . . Combat Hostiles . | . . . . Parts Melted . | . . . . Heat Transferred 25 | . 25 . . Parts Sabotaged . | . . . . Parts Stolen . | . . . . Parts Stripped . | . . . . Power Chain Reactions . | . . . . Alert | -11 -10 -10 -8 ------- Run | Yrd Mat Sub Mat Peak Influence 204 | 5 204 . 95 Initial 3 | . 3 . . Average 38 | 1 41 . 29 Maximum Alert Level 1 | . 1 . . Low Security (%) 96 | 100 96 . 100 Level 1 3 | . 3 . . Level 2 . | . . . . Level 3 . | . . . . Level 4 . | . . . . Level 5 . | . . . . High Security . | . . . . Max Security . | . . . . Squads Dispatched 4 | . 3 . 1 Investigation 1 | . 1 . . Extermination . | . . . . Reinforcement 3 | . 2 . 1 Assault . | . . . . Garrison . | . . . . Intercept . | . . . . Searches Triggered . | . . . . Construction Impeded . | . . . . Haulers Reinforced . | . . . . Active Scanning Responses . | . . . . Cargo Convoy Interrupts . | . . . . Stealth | -11 -10 -10 -8 --------- Run | Yrd Mat Sub Mat Distress Signals 4 | . 4 . . Communications Jammed . | . . . . Distress Signals . | . . . . Times Spotted 42 | . 15 16 11 Peak Tracking Total 10 | . 4 3 10 Tactical Retreats 3 | . 2 . 1 Traps | -11 -10 -10 -8 ------- Run | Yrd Mat Sub Mat Traps Triggered 5 | . 2 3 . Indirectly . | . . . . Trap Hack Attempts . | . . . . Triggered . | . . . . Disarmed . | . . . . Reprogrammed . | . . . . Reused . | . . . . Traps Extracted . | . . . . Installed . | . . . . Triggered . | . . . . Machines | -11 -10 -10 -8 ---------- Run | Yrd Mat Sub Mat Machines Disabled . | . . . . Max in Single Turn . | . . . . Machines Repaired . | . . . . Machines Dismantled . | . . . . Machines Sabotaged . | . . . . Overloaded Fab Kills . | . . . . Hacking | -11 -10 -10 -8 --------- Run | Yrd Mat Sub Mat Machines Accessed 10 | . 7 2 1 Terminals 6 | . 5 . 1 Fabricators . | . . . . Repair Stations . | . . . . Recycling Units 2 | . 2 . . Scanalyzers . | . . . . Garrison Access . | . . . . Total Hacks 32 | . 14 13 5 Successful 23 | . 6 13 4 Failed 9 | . 8 . 1 Catastrophic 1 | . 1 . . Database Lockouts . | . . . . Manual 13 | . 11 . 2 Terminals 15 | . 10 . 5 Fabricators . | . . . . Repair Stations . | . . . . Recycling Units 4 | . 4 . . Scanalyzers . | . . . . Garrison Access . | . . . . Terminal Hacks 17 | . 2 13 2 Record 12 | . . 12 . Robot Analysis 2 | . 1 . 1 Hauler Manifests 1 | . 1 . . Zone Layout 1 | . . . 1 Derelict Proto ID Bank 1 | . . 1 . Fabricator Hacks . | . . . . Repair Station Hacks . | . . . . Recycling Unit Hacks . | . . . . Scanalyzer . | . . . . Garrison Access Hacks . | . . . . Unauthorized Hacks 6 | . 4 . 2 Terminals 3 | . 1 . 2 Botnet 1 | . . . 1 Operators 2 | . 1 . 1 Fabricators . | . . . . Repair Stations . | . . . . Recycling Units 3 | . 3 . . Reject 1 | . 1 . . Mask 2 | . 2 . . Scanalyzers . | . . . . Garrison Access . | . . . . Data Cores Recovered . | . . . . Used . | . . . . Hacking Detections 8 | . 7 . 1 Full Trace Events 1 | . 1 . . Feedback Events . | . . . . Feedback Blocked . | . . . . Robot Schematics Acquired . | . . . . Robots Built . | . . . . Authchips . | . . . . Time . | . . . . Total Robot Build Rating . | . . . . Part Schematics Acquired . | . . . . Parts Built . | . . . . Authchips . | . . . . Time . | . . . . Total Part Build Rating . | . . . . Parts Repaired . | . . . . Time . | . . . . Parts Recycled . | . . . . Recycled Matter . | . . . . Retrieved Matter . | . . . . Retrieved Components . | . . . . Parts Scanalyzed . | . . . . Part Schematics Acquired . | . . . . Parts Damaged . | . . . . Bothacking | -11 -10 -10 -8 ------------ Run | Yrd Mat Sub Mat Used RIF Installer . | . . . . Robots Hacked . | . . . . Non-combat . | . . . . Combat . | . . . . Robot Hacks Applied . | . . . . Relay Couplers Released . | . . . . Fabnet Peak Effective % . | . . . . Robots Rewired . | . . . . Allies Hacked . | . . . . Hacks Repelled . | . . . . Allies | -11 -10 -10 -8 -------- Run | Yrd Mat Sub Mat Total Allies . | . . . . Largest Group . | . . . . Highest-Rated Group . | . . . . Highest-Rated Ally . | . . . . Total Orders . | . . . . Ally Attacks . | . . . . Total Damage . | . . . . Kills . | . . . . Allies Corrupted . | . . . . Allies Melted . | . . . . Intel | -11 -10 -10 -8 ------- Run | Yrd Mat Sub Mat Robot Analysis Total 2 | . 1 . 1 Derelict Logs Recovered 3 | . . 3 . Drone Launches . | . . . . Drone Recoveries . | . . . . Exploration | -11 -10 -10 -8 ------------- Run | Yrd Mat Sub Mat Turns Passed 5906 | 60 1487 4126 233 Spaces Moved 3137 | 26 702 2311 98 Core . | . . . . Treads 2395 | . . 2297 98 Legs 742 | 26 702 14 . Wheels . | . . . . Hover . | . . . . Flight . | . . . . Fastest Speed 120 | 120 120 120 160 Average Speed 151 | 120 120 160 173 Slowest Speed 240 | 120 120 190 240 Overloaded Moves . | . . . . Propulsion Burnouts . | . . . . Robots Hopped . | . . . . Cave-ins Triggered . | . . . . Exploration Rate (%) 49 | 3 92 92 9 Regions Visited 3 Branch Regions 1 Pre-discovered Areas 2 | . . 2 . Known Exits Taken . | . . . . Unknown Exits Taken 3 | 1 1 1 . Scrap Searched 3 | . . 3 . Spaces Dug . | . . . . Terrain Destroyed 5 | . . 1 4 Melee . | . . . . Projectile 5 | . . 1 4 AOE . | . . . . Terrain Rammed . | . . . . Walls Destroyed . | . . . . Machines Disabled . | . . . . Actions | -11 -10 -10 -8 --------- Run | Yrd Mat Sub Mat Total 3999 | 42 1272 2556 129 Wait 647 | 10 519 111 7 Move 3134 | 25 701 2310 98 Hop . | . . . . Pick Up 8 | . 3 4 1 Fast Attach 11 | 1 2 5 3 Attach 5 | . 2 1 2 Detach 2 | . 1 . 1 Swap 5 | . . 5 . Drop 16 | . 4 11 1 Fire 152 | 6 40 90 16 Melee . | . . . . Ram . | . . . . Kick . | . . . . Crush . | . . . . Escape Stasis . | . . . . Rewire 3 | . . 3 . Trap . | . . . . Miscellaneous 16 | . . 16 . Route ------- -11/Scrapyard -10/Materials (discovered 6 exits: [*Mat x3] / [*Min x2] / *Sub) -10/Subcaves (discovered 2 exits: *Mat x2) -8/Materials History --------- Turn | Location | Event 1 | -11/Scrapyard | Discovered new exit (range 2) 61 | -11/Scrapyard | Entered Materials 143 | -10/Materials | Discovered new exit (range 10) 293 | -10/Materials | Discovered new exit (range 11) 315 | -10/Materials | Build established: Mutant 500 | -10/Materials | Derelicts attacked the area 735 | -10/Materials | Discovered new exit (range 8) 1177 | -10/Materials | Discovered new exit (range 9) 1268 | -10/Materials | Discovered new exit (range 13) 1427 | -10/Materials | Discovered new exit (range 9) 1548 | -10/Materials | Entered Subcaves 1572 | -10/Subcaves | Core integrity fell below 50% 1706 | -10/Subcaves | Visited Clippyterm 2129 | -10/Subcaves | A swath of the cavern ceiling suddenly collapsed 2256 | -10/Subcaves | Learned location of Storage (-7) 2370 | -10/Subcaves | Learned location of Zion (-6) 2898 | -10/Subcaves | Shifting Twisted Machinery released Sub. Beam Cannon 2902 | -10/Subcaves | Shifting Twisted Machinery released Shrapnel Trap 3036 | -10/Subcaves | Discovered new exit (range 4) 3525 | -10/Subcaves | Learned Materials stockpile data 3898 | -10/Subcaves | Discovered new exit (range 14) 4939 | -10/Subcaves | Shifting Twisted Machinery released Hvy. Riot Gun 4986 | -10/Subcaves | Shifting Twisted Machinery released Battle Cannon 5478 | -10/Subcaves | Visited 4L-MR0's lab 5674 | -10/Subcaves | Entered Materials 5674 | -8/Materials | Evolved 4 slots: Propulsion x2, Utility x2 5907 | -8/Materials | Self-destructed Last Messages --------------- 05874_ L-31 Rogue destroyed. 05876_ Critical hit (Burn: +28). 05876_ Scrap Shield destroyed. 05877_ Acquired 37 matter. 05881_ Critical hit (Burn: +29). 05883_ G-47 Trooper destroyed. 05884_ M-28 Smith repairs G-50 Soldier. 05886_ U-05 Engineer destroyed. 05886_ M-28 Smith knocked back. 05887_ Lgt. Treads destroyed. 05889_ U-05 Engineer destroyed. 05889_ G-50 Soldier knocked back. 05892_ Acquired 1 matter. 05894_ Hardlight Generator destroyed. 05894_ Critical hit (Burn: +29). 05900_ Acquired 43 matter. 05902_ Acquired 30 matter. 05903_ Lgt. Treads destroyed. 05904_ Battle Cannon destroyed. 05905_ G-50 Soldier knocked back. Map ----- +----------------------------------------------------+ | ??????????????????????# # """ """ #???????? | | ??????????????????????# + """"""""" #???????? | | ??????????????????????# # """"" #???????? | | ??????????????????????# # #???????? | | ????????????????????#####+################???????? | | ????????????????????# #???????????????????? | | ????????????????????# #???????????????????? | | ????????????????????# """ #???????????????????? | | ????????????????????#""""" #???????????????????? | | ????????????????????#""""" #???????????????????? | | ????????????????????#""""" #???????????????????? | | ????????????????????# """ #???????????????????? | | ????????????????????# #########???????????? | | ????????????????????# # """ #???????????? | | ????????????????????########## "T" #???????????? | | ????????????????????# # #???????????? | | ????????????????????# # """ #???????????? | | ????????????????????# # "" #???????????? | | ????????????????????# # """ #???????????? | | ????????????????????# # #???????????? | | ????????????????????# ; """ #???????????? | | ????????????????????# gg| # """ #???????????? | | ????????????????????# %g% # """ #???????????? | | ????????????????????# !*gg " #???????????? | | ????????????# #######!/#;####+#########??????? | | ?????????? m !%@ = # #??????? | | ???????????? T ! ==!%% g # """ #??????? | | ???????????? !|* % # """ #??????? | | ???????????## ##########+### + """ #??????? | | ????????????###+???##??# " ## # #??????? | | ???????????????????????# ## # !#??????? | | ???????????????????????# ## ########??????? | | ???????????????????????# # ############## | | ???????????????????????# ! # | | ???????????????????????# ! # | | ???????????????????????######## | | ??????????????????????????????# ############## | | ??????????????????????????????#######????????????? | | ?????????????????????????????????????????????????? | | ?????????????????????????????????????????????????? | | ?????????????????????????????????????????????????? | | ?????????????????????????????????????????????????? | | ?????????????????????????????????????????????????? | | ?????????????????????????????????????????????????? | | ?????????????????????????????????????????????????? | | | | | | | | | | | +----------------------------------------------------+ Best States ------------- Heat Dissipation 31 Energy Generation 15 Energy Capacity 200 Matter Stores 300 Matter Capacity 300 Sight Range 16 Terrain Scan Density 10 Armor Coverage 950 Evasion (%) 55 Recoil Reduction 2 Item Schematics ----------------- None Robot Schematics ------------------ None Fabricated ------------ Nothing Alien Tech Used ----------------- None Achievements -------------- None Challenges ------------ None Game ------ Seed NeutrinoPhaseRefractor Manual? 0 Play Time 00:37:49 Cumulative 59.6 hours Start 2024.04.22 @ 05:03:27 End 2024.04.22 @ 20:51:40 Sessions 2 Manual Loads 0 Difficulty Rogue Special Mode None Game No. 38 Rogue 38 Adventurer 0 Explorer 0 Win Type - Total 1 Types 1/0/0/0/0/0/0/0/0 Lore% 51 Gallery% 39 Achievement% 39 Wizard Run 0 Options --------- Layout 0 ASCII 0 Keyboard 0 Movement Mouse Keybinds 0 Fullscreen 1 Font 18/SmallcapsGlow Map View 76x50 Zoom Use 0% Tactical HUD 1 Map Filters NONE Filters NONE Steam 1 RUN: 30ee0658-78d7-400e-9b52-e1666a0a662d